bitfinex/quotes_SOLUSD_20240814
["timestamp","ask_amount","ask_price","bid_price","bid_amount"]
[1723653507063,34.621316,144.81,144.64,15.2572]
[1723653507064,20.0,144.76,144.64,15.2572]
[1723653507267,20.0,144.78,144.64,63.0972]
[1723653507481,20.0,144.78,144.65,20.0]
[1723653507673,20.0,144.8,144.67,47.84]
[1723653507989,27.703316,144.81,144.69,15.2786]
[1723653508577,20.0,144.82,144.7,47.84]
[1723653508869,20.0,144.84,144.7,47.84]
[1723653509188,20.0,144.84,144.72,6.4591]
[1723653509501,20.0,144.84,144.73,47.84]
[1723653509661,20.0,144.86,144.73,47.84]
[1723653510262,47.84,144.77,144.67,6.4591]
[1723653510564,20.0,144.72,144.67,6.4591]
[1723653510790,20.0,144.68,144.64,15.2786]
[1723653511481,0.12549,144.67,144.64,15.2786]
[1723653512567,20.0,144.68,144.64,15.2786]
[1723653512568,0.25098,144.69,144.64,15.2786]
[1723653512869,0.12549,144.68,144.64,15.2786]
[1723653513182,20.0,144.7,144.64,15.2786]
[1723653513880,20.0,144.72,144.64,15.2786]
[1723653514271,0.25098,144.73,144.64,15.2786]
[1723653514470,0.12549,144.73,144.64,15.2786]
[1723653514690,20.0,144.76,144.64,15.2786]
[1723653515064,47.84,144.8,144.64,15.2786]
[1723653515065,20.0,144.78,144.64,15.2786]
[1723653515267,7.18141402,144.85,144.64,15.2786]
[1723653515268,20.0,144.84,144.66,53.9027]
[1723653515482,27.691548,144.81,144.7,16.4503]
[1723653515690,20.0,144.84,144.7,16.4503]
[1723653515877,20.0,144.86,144.71,6.1486]
[1723653516077,20.0,144.84,144.71,6.1486]
[1723653516772,20.0,144.82,144.71,6.1486]
[1723653518192,67.84,144.84,144.71,6.1486]
[1723653518391,20.0,144.84,144.71,6.1486]
[1723653518772,20.0,144.86,144.72,47.84]
[1723653518982,20.0,144.84,144.72,47.84]
[1723653519803,20.0,144.86,144.72,47.84]
[1723653519986,20.0,144.86,144.75,47.84]
[1723653520893,20.0,144.88,144.75,47.84]
[1723653521289,20.0,144.9,144.77,6.4825]
[1723653523805,20.0,144.92,144.78,47.84]
[1723653524103,20.0,144.92,144.81,47.84]
[1723653524309,20.0,144.92,144.82,22.1643]
[1723653524894,47.84,144.97,144.82,22.1643]
[1723653524895,20.0,144.94,144.82,22.1643]
[1723653525278,20.0,144.94,144.83,20.0]
[1723653525920,20.0,144.99,144.84,47.84]
[1723653526501,20.0,144.99,144.86,6.5137]
[1723653526684,0.8130321,145.0,144.87,63.5371]
[1723653527012,47.84,145.04,144.88,20.0]
[1723653527318,20.0,145.05,144.91,6.5137]
[1723653527483,20.0,145.05,144.93,47.84]
[1723653527696,20.0,145.05,144.94,15.5303]
[1723653527992,67.84,145.07,144.94,15.5303]
[1723653528399,20.0,145.07,144.94,15.5303]
[1723653529001,20.0,145.07,144.95,6.398]
[1723653530286,67.84,145.1,144.96,47.84]
[1723653532486,20.0,145.1,144.96,47.84]
[1723653533308,20.0,145.1,144.97,20.0]
[1723653533494,20.0,145.06,144.95,6.398]
[1723653534620,0.12549,145.07,144.95,6.398]
[1723653534621,0.25098,145.07,144.95,6.398]
[1723653534983,20.12549,145.06,144.95,6.398]
[1723653536008,0.12549,145.06,144.95,6.398]
[1723653536197,0.25098,145.07,144.95,6.398]
[1723653536398,20.0,145.06,144.95,6.398]
[1723653536693,20.0,145.02,144.95,6.398]
[1723653537312,0.12549,145.01,144.95,6.398]
[1723653537518,20.0,145.04,144.95,6.398]
[1723653538891,20.0,145.02,144.95,6.398]
[1723653539303,48.09098,145.03,144.95,6.398]
[1723653539618,20.0,145.02,144.95,6.398]
[1723653540191,20.0,145.06,144.95,6.398]
[1723653540420,67.84,145.09,144.95,6.398]
[1723653540421,20.0,145.08,144.95,6.398]
[1723653541099,20.0,145.08,144.96,47.84]
[1723653542112,20.0,145.1,144.96,47.84]
[1723653542313,20.0,145.12,145.0,6.434]
[1723653542496,20.8130321,145.14,145.02,47.84]
[1723653542704,20.0,145.11,145.01,22.575]
[1723653543218,20.0,145.08,145.01,22.575]
[1723653543998,0.12549,145.05,145.01,22.575]
[1723653544527,19.5,145.09,145.01,22.575]
[1723653544701,20.0,145.08,145.01,22.575]
[1723653545106,20.0,145.1,145.01,22.575]
[1723653545514,20.0,145.13,145.01,22.575]
[1723653545711,20.0,145.13,145.06,47.84]
[1723653546032,20.0,145.13,145.03,47.84]
[1723653546230,20.0,145.11,145.01,22.575]
[1723653546399,20.0,145.13,145.01,22.575]
[1723653547338,0.8130321,145.14,145.03,47.84]
[1723653549225,0.8130321,145.14,145.07,6.4578]
[1723653552630,20.0,145.09,145.02,6.5881]
[1723653553141,0.25098,145.1,145.02,6.5881]
[1723653553327,45.25098,145.1,145.02,6.5881]
[1723653553630,0.25098,145.1,145.02,6.5881]
[1723653553832,20.0,145.06,145.02,6.5881]
[1723653554009,20.0,145.04,145.01,16.141]
[1723653554332,20.0,145.02,144.97,6.1849]
[1723653554549,20.25098,145.03,144.97,6.1849]
[1723653554719,20.0,145.02,144.97,6.1849]
[1723653554923,0.25098,145.03,144.97,6.1849]
[1723653555231,20.0,145.02,144.97,6.1849]
[1723653555618,45.25098,145.03,144.97,6.1849]
[1723653555814,20.0,145.02,144.97,6.1849]
[1723653556126,45.25098,145.03,144.97,6.1849]
[1723653556328,0.25098,145.03,144.97,6.1849]
[1723653556921,0.12549,145.03,144.97,6.1849]
[1723653557134,0.50196,145.03,144.97,6.1849]
[1723653557314,0.25098,145.03,144.97,6.1849]
[1723653557742,20.25098,145.04,144.97,6.1849]
[1723653557955,20.0,145.06,144.97,6.1849]
[1723653558122,0.12549,145.05,144.97,6.1849]
[1723653559025,0.25098,145.05,144.97,6.1849]
[1723653559448,20.0,145.08,144.97,6.1849]
[1723653559741,20.0,145.07,144.97,6.1849]
[1723653559925,20.0,145.1,144.97,6.1849]
[1723653560129,20.0,145.1,144.97,54.0249]
[1723653560439,22.62467731,145.12,144.97,54.0249]
[1723653560741,20.0,145.12,144.98,20.0]
[1723653561117,67.84,145.06,144.97,6.1849]
[1723653561320,20.0,145.03,144.97,6.1849]
[1723653563238,0.12549,145.03,144.97,6.1849]
[1723653563439,0.25098,145.03,144.97,6.1849]
[1723653563840,0.12549,145.02,144.97,6.1849]
[1723653564025,20.25098,145.02,144.97,6.1849]
[1723653564849,0.25098,145.02,144.97,6.1849]
[1723653565247,20.0,145.04,144.97,6.1849]
[1723653565454,47.84,145.06,144.97,6.1849]
[1723653565455,20.0,145.06,144.97,6.1849]
[1723653565661,20.0,145.08,144.97,6.1849]
[1723653566024,20.0,145.1,144.97,6.1849]
[1723653566556,20.0,145.12,144.99,47.84]
[1723653566946,47.84,145.15,144.99,47.84]
[1723653566947,20.8130321,145.14,144.99,47.84]
[1723653567128,20.8130321,145.14,145.01,6.2945]
[1723653567445,0.8130321,145.14,145.02,47.84]
[1723653568229,0.8130321,145.14,145.03,35.7805]
[1723653568459,0.8130321,145.14,145.04,6.2944]
[1723653568826,20.0,145.11,145.04,6.2944]
[1723653569250,20.0,145.09,145.04,6.2944]
[1723653569429,20.0,145.11,145.04,6.2944]
[1723653570149,0.50196,145.1,145.04,6.2944]
[1723653570357,20.0,145.11,145.04,6.2944]
[1723653570556,0.50196,145.1,145.04,6.2944]
[1723653571652,20.0,145.11,145.04,6.2944]
[1723653572239,20.0,145.09,145.04,6.2944]
[1723653572626,45.25098,145.1,145.04,6.2944]
[1723653572847,0.25098,145.1,145.04,6.2944]
[1723653573444,0.12549,145.1,145.04,6.2944]
[1723653573643,20.0,145.11,145.04,6.2944]
[1723653573948,47.84,145.12,145.04,6.2944]
[1723653574135,40.12549,145.11,145.04,6.2944]
[1723653574733,40.0,145.11,145.04,6.2944]
[1723653574934,0.12549,145.05,145.03,15.7805]
[1723653575138,20.0,145.04,145.01,6.5231]
[1723653575552,20.0,145.04,144.92,6.5231]
[1723653576459,20.0,145.0,144.92,6.5231]
[1723653576761,0.25098,144.99,144.92,6.5231]
[1723653577063,0.12549,144.97,144.92,6.5231]
[1723653577275,0.25098,144.99,144.92,6.5231]
[1723653577567,20.12549,145.0,144.92,6.5231]
[1723653578138,20.0,144.98,144.93,16.1107]
[1723653579367,0.25098,144.99,144.93,16.1107]
[1723653579551,20.0,145.0,144.93,16.1107]
[1723653579869,20.0,144.98,144.93,16.1107]
[1723653580466,40.0,145.0,144.93,16.1107]
[1723653581163,20.0,145.04,144.93,16.1107]
[1723653581362,6.8909,145.12,144.93,16.1107]
[1723653581363,20.0,145.06,144.93,16.1107]
[1723653582047,20.0,145.1,144.96,6.43]
[1723653583268,20.8130321,145.14,144.98,47.84]
[1723653583269,20.0,145.12,144.98,47.84]
[1723653583437,20.0,145.06,144.97,16.1117]
[1723653583645,47.84,145.11,144.97,16.1117]
[1723653583646,20.0,145.03,144.97,16.1117]
[1723653584536,67.84,145.05,144.97,16.1117]
[1723653584770,0.37647,145.04,144.97,16.1117]
[1723653585142,47.96549,145.05,144.97,16.1117]
[1723653585867,0.12549,145.02,144.97,16.1117]
[1723653586348,0.25098,145.04,144.97,16.1117]
[1723653586668,0.12549,145.04,144.97,16.1117]
[1723653587773,20.0,145.05,144.97,16.1117]
[1723653587949,0.12549,145.06,144.97,16.1117]
[1723653588173,0.12549,145.01,144.97,16.1117]
[1723653588461,0.50196,145.01,144.97,16.1117]
[1723653589557,0.25098,145.01,144.97,16.1117]
[1723653590569,0.12549,145.01,144.97,16.1117]
[1723653590743,47.84,145.05,144.97,16.1117]
[1723653590744,47.96549,145.05,144.97,16.1117]
[1723653590954,0.12549,145.05,144.97,16.1117]
[1723653591657,67.84,145.08,144.97,16.1117]
[1723653591869,20.0,145.08,144.97,16.1117]
[1723653592371,20.0,145.1,144.97,16.1117]
[1723653592579,20.0,145.08,144.97,16.1117]
[1723653593557,20.0,145.1,144.97,16.1117]
[1723653593761,47.84,145.11,144.97,16.1117]
[1723653593965,20.0,145.12,145.0,15.5919]
[1723653594268,20.0,145.1,145.0,15.5919]
[1723653594860,47.84,145.11,145.0,15.5919]
[1723653595250,20.0,145.12,145.0,15.5919]
[1723653596372,20.0,145.12,145.01,6.3614]
[1723653597376,0.8130321,145.14,145.01,6.3614]
[1723653598160,0.8130321,145.14,145.02,16.4783]
[1723653598371,0.8130321,145.14,145.03,6.0487]
[1723653599254,0.8130321,145.14,145.04,22.527]
[1723653600249,0.8130321,145.14,145.06,6.6352]
[1723653600450,67.84,145.21,145.07,16.4451]
[1723653601978,0.12549,145.2,145.07,16.4451]
[1723653602154,47.84,145.21,145.07,16.4451]
[1723653602349,47.84,145.21,145.08,6.6352]
[1723653602770,67.84,145.21,145.08,6.6352]
[1723653602976,20.0,145.19,145.08,6.6352]
[1723653603371,47.84,145.18,145.08,6.6352]
[1723653604463,20.0,145.14,145.08,6.6352]
[1723653604876,0.25098,145.13,145.08,6.6352]
[1723653605080,20.0,145.1,145.08,6.6352]
[1723653605785,20.0,145.08,144.97,15.2722]
[1723653605954,47.96549,145.09,144.97,15.2722]
[1723653605955,0.12549,145.05,144.97,15.2722]
[1723653606154,0.37647,145.05,144.97,15.2722]
[1723653606374,20.0,145.02,144.97,15.2722]
[1723653606757,48.21647,145.03,144.97,15.2722]
[1723653607156,20.25098,145.02,144.97,15.2722]
[1723653607782,67.84,145.0,144.97,15.2722]
[1723653607997,20.0,144.98,144.88,7.17658517]
[1723653608194,0.12549,144.99,144.89,16.0651]
[1723653608397,20.0,145.02,144.89,16.0651]
[1723653608890,20.0,145.02,144.9,6.0255]
[1723653609579,20.0,144.98,144.9,6.0255]
[1723653609977,0.37647,144.97,144.9,6.0255]
[1723653610177,0.12549,144.99,144.9,6.0255]
[1723653610385,20.0,145.0,144.9,6.0255]
[1723653610685,0.12549,144.99,144.9,6.0255]
[1723653611488,67.84,144.98,144.9,6.0255]
[1723653611692,20.0,144.95,144.9,6.0255]
[1723653611991,20.0,144.96,144.9,6.0255]
[1723653612167,0.37647,144.97,144.9,6.0255]
[1723653612168,20.0,144.93,144.9,6.0255]
[1723653612365,0.12549,144.9,144.85,6.5933]
[1723653612692,0.37647,144.9,144.85,6.5933]
[1723653612900,20.0,144.89,144.85,6.5933]
[1723653613083,67.84,144.89,144.85,6.5933]
[1723653613595,67.84,144.89,144.75,47.84]
[1723653613596,47.84,144.86,144.8,6.0327]
[1723653613890,0.12549,144.86,144.8,6.0327]
[1723653614092,20.0,144.85,144.8,6.0327]
[1723653615603,0.25098,144.84,144.8,6.0327]
[1723653615799,0.25098,144.84,144.78,16.9882321]
[1723653615800,20.0,144.81,144.78,16.9882321]
[1723653615969,0.25098,144.82,144.78,16.9882321]
[1723653616172,20.0,144.81,144.78,16.9882321]
[1723653617101,0.12549,144.83,144.78,16.9882321]
[1723653617271,20.0,144.83,144.78,16.9882321]
[1723653617478,0.12549,144.82,144.78,16.9882321]
[1723653617687,20.0,144.83,144.78,16.9882321]
[1723653618006,20.0,144.81,144.78,16.9882321]
[1723653618172,0.12549,144.82,144.78,0.8130321]
[1723653618173,67.96549,144.79,144.78,0.8130321]
[1723653618373,67.96549,144.79,144.71,6.1083]
[1723653618591,0.12549,144.79,144.71,6.1083]
[1723653618975,20.12549,144.79,144.71,6.1083]
[1723653619171,20.25098,144.79,144.71,6.1083]
[1723653620182,0.12549,144.79,144.71,6.1083]
[1723653620509,20.0,144.81,144.71,6.1083]
[1723653620681,47.84,144.83,144.71,6.1083]
[1723653620879,20.0,144.84,144.71,6.1083]
[1723653621105,50.51332379,144.86,144.71,53.9483]
[1723653621106,20.0,144.86,144.71,53.9483]
[1723653621278,20.0,144.88,144.74,47.84]
[1723653621605,20.0,144.86,144.74,47.84]
[1723653621782,20.0,144.88,144.74,47.84]
[1723653622677,20.0,144.86,144.72,16.4439]
[1723653623186,20.0,144.82,144.72,16.4439]
[1723653623792,20.0,144.8,144.72,16.4439]
[1723653624301,0.37647,144.79,144.72,16.4439]
[1723653624882,67.84,144.78,144.72,16.4439]
[1723653626316,20.0,144.76,144.72,16.4439]
[1723653626609,20.0,144.74,144.72,16.4439]
[1723653626795,20.0,144.74,144.65,23.2313]
[1723653627586,48.21647,144.75,144.65,23.2313]
[1723653627786,20.0,144.76,144.65,23.2313]
[1723653628306,0.37647,144.75,144.65,23.2313]
[1723653628886,0.25098,144.75,144.65,23.2313]
[1723653629188,20.0,144.78,144.65,71.0713]
[1723653629706,20.0,144.8,144.65,71.0713]
[1723653630596,20.0,144.82,144.66,0.12549]
[1723653630911,20.0,144.84,144.69,6.4758]
[1723653631277,20.0,144.82,144.7,16.161]
[1723653632610,0.12549,144.79,144.7,16.161]
[1723653632784,47.84,144.8,144.7,16.161]
[1723653632985,20.25098,144.81,144.7,16.161]
[1723653633225,20.0,144.81,144.7,16.161]
[1723653633417,20.0,144.79,144.7,16.161]
[1723653634195,47.96549,144.8,144.7,16.161]
[1723653634402,47.84,144.8,144.7,16.161]
[1723653634809,67.84,144.83,144.7,16.161]
[1723653635115,47.84,144.83,144.7,64.001]
[1723653635288,67.84,144.83,144.7,64.001]
[1723653635617,47.84,144.83,144.7,64.001]
[1723653636711,47.84,144.86,144.71,26.58899]
[1723653636915,47.84,144.86,144.72,16.0903]
[1723653637120,20.0,144.87,144.74,6.4635]
[1723653637319,20.0,144.89,144.75,16.0903]
[1723653638421,20.0,144.86,144.75,16.0903]
[1723653638604,67.84,144.86,144.75,16.0903]
[1723653639000,20.0,144.88,144.75,16.0903]
[1723653639201,75.02016944,144.9,144.75,16.0903]
[1723653639403,0.12549,144.89,144.75,16.0903]
[1723653639605,47.84,144.87,144.75,16.0903]
[1723653640006,60.12,144.88,144.75,16.0903]
[1723653640209,20.0,144.86,144.75,16.0903]
[1723653640599,40.12,144.83,144.75,16.0903]
[1723653640821,20.0,144.82,144.75,16.0903]
[1723653641421,40.49647,144.81,144.75,16.0903]
[1723653641592,40.37098,144.81,144.75,16.0903]
[1723653641794,40.12,144.85,144.75,16.0903]
[1723653642012,0.12549,144.85,144.75,16.0903]
[1723653642205,48.28549,144.86,144.75,16.0903]
[1723653642402,68.16,144.86,144.75,16.0903]
[1723653643200,48.16,144.86,144.75,16.0903]
[1723653643604,68.16,144.86,144.75,16.0903]
[1723653643818,20.0,144.88,144.75,16.0903]
[1723653643998,48.16,144.9,144.75,16.0903]
[1723653643999,68.16,144.9,144.75,16.0903]
[1723653644198,48.16,144.9,144.77,15.2119]
[1723653644413,20.0,144.87,144.77,15.2119]
[1723653644603,48.16,144.9,144.77,15.2119]
[1723653644604,48.16,144.84,144.77,15.2119]
[1723653645518,20.0,144.83,144.77,15.2119]
[1723653645820,48.16,144.84,144.77,15.2119]
[1723653646203,68.16,144.84,144.77,15.2119]
[1723653646406,0.37647,144.83,144.77,15.2119]
[1723653646602,20.0,144.8,144.77,15.2119]
[1723653646914,0.12549,144.8,144.77,15.2119]
[1723653647601,0.12549,144.81,144.77,15.2119]
[1723653647817,48.16,144.83,144.77,15.2119]
[1723653648105,55.34060978,144.9,144.77,15.2119]
[1723653648629,22.58299073,144.88,144.77,15.2119]
[1723653649134,20.0,144.86,144.77,15.2119]
[1723653650324,0.37647,144.87,144.77,15.2119]
[1723653650628,70.83987979,144.9,144.77,15.2119]
[1723653651226,68.16,144.9,144.77,15.2119]
[1723653653324,48.16,144.9,144.79,16.4262]
[1723653655211,20.0,144.89,144.79,16.4262]
[1723653655526,0.37647,144.88,144.79,16.4262]
[1723653655928,20.12549,144.89,144.79,16.4262]
[1723653656126,20.0,144.89,144.79,16.4262]
[1723653656434,48.16,144.9,144.79,16.4262]
[1723653657707,20.0,144.95,144.81,15.0139]
[1723653658017,20.0,144.95,144.83,15.0139]
[1723653658711,48.16,144.91,144.83,15.0139]
[1723653660641,48.16,144.94,144.83,15.0139]
[1723653660936,20.0,144.96,144.83,15.0139]
[1723653661139,48.16,144.97,144.84,6.5266]
[1723653661342,48.16,144.97,144.85,15.2577]
[1723653661540,48.16,144.97,144.86,6.2765]
[1723653662128,40.06,144.98,144.86,6.2765]
[1723653662335,40.06,145.0,144.87,16.221]
[1723653662637,60.06,145.0,144.87,16.221]
[1723653662939,40.06,145.0,144.87,16.221]
[1723653663152,40.06,145.0,144.88,6.2655]
[1723653663311,60.06,145.0,144.88,6.2655]
[1723653663515,40.06,145.0,144.89,15.1423]
[1723653663711,60.06,145.02,144.89,15.1423]
[1723653664131,60.06,145.02,144.9,6.331]
[1723653665042,40.06,145.02,144.9,6.331]
[1723653665245,40.06,145.02,144.91,16.6422]
[1723653666748,60.06,145.04,144.91,16.6422]
[1723653667144,60.06,145.04,144.92,6.4616]
[1723653668256,60.06,145.04,144.93,15.373]
[1723653669857,40.06,145.04,144.93,15.373]
[1723653670075,20.0,145.06,144.93,15.373]
[1723653670076,60.06,145.06,144.93,15.373]
[1723653670275,60.06,145.06,144.94,6.543]
[1723653670950,40.06,145.06,144.95,16.4142]
[1723653671148,20.0,145.08,144.97,16.4142]
[1723653671544,20.0,145.08,144.98,6.543]
[1723653671742,20.8130321,145.14,144.98,6.543]
[1723653671743,20.0,145.1,144.98,6.543]
[1723653672354,60.06,145.01,144.97,16.4142]
[1723653672531,20.0,145.01,144.97,16.4142]
[1723653672729,40.06,144.98,144.97,8.10488884]
[1723653672931,0.12549,144.97,144.81,6.0325]
[1723653673145,40.06,144.94,144.81,6.0325]
[1723653675039,40.06,144.92,144.81,6.0325]
[1723653675461,20.0,144.93,144.81,6.0325]
[1723653675631,40.06,144.92,144.81,6.0325]
[1723653675832,20.0,144.93,144.82,16.3172]
[1723653676038,20.37647,144.95,144.82,16.3172]
[1723653676237,0.50196,144.94,144.82,16.3172]
[1723653676960,48.1,144.96,144.82,16.3172]
[1723653677161,48.1,144.96,144.83,26.2941]
[1723653677465,2.67097653,144.99,144.91,21.8636]
[1723653677845,20.0,145.03,144.91,21.8636]
[1723653679645,20.0,145.01,144.91,21.8636]
[1723653680356,0.12549,144.98,144.91,21.8636]
[1723653680533,0.25098,144.98,144.91,21.8636]
[1723653680739,0.25098,144.98,144.83,55.27308466]
[1723653680740,0.12549,144.91,144.86,6.1773]
[1723653681255,20.0,144.9,144.86,6.1773]
[1723653681454,0.50196,144.91,144.86,6.1773]
[1723653681654,0.12549,144.93,144.86,6.1773]
[1723653681961,45.50196,144.93,144.86,6.1773]
[1723653682463,0.25098,144.93,144.86,6.1773]
[1723653682643,45.25098,144.93,144.86,6.1773]
[1723653684875,0.25098,144.93,144.86,6.1773]
[1723653685085,22.62891066,144.98,144.86,6.1773]
[1723653685376,410.9488,145.09,144.89,16.5553]
[1723653685377,20.0,145.02,144.89,16.5553]
[1723653685578,20.0,145.04,144.92,6.0271]
[1723653685953,20.0,145.02,144.92,6.0271]
[1723653686156,20.0,144.99,144.92,6.0271]
[1723653686970,20.0,145.01,144.92,6.0271]
[1723653687145,20.0,145.03,144.92,6.0271]
[1723653687474,20.0,145.08,144.94,48.1]
[1723653687645,47.641495,145.13,144.93,16.2998]
[1723653687646,20.0,145.04,144.93,16.2998]
[1723653688780,20.0,145.02,144.93,16.2998]
[1723653689071,20.0,145.04,144.93,16.2998]
[1723653689369,68.1,145.08,144.93,16.2998]
[1723653689584,20.0,145.1,144.95,6.3655]
[1723653689750,20.0,145.08,144.95,6.3655]
[1723653690151,20.0,145.06,144.95,6.3655]
[1723653690356,20.0,145.0,144.95,6.3655]
[1723653690578,48.1,144.99,144.95,6.3655]
[1723653690760,20.0,144.98,144.95,6.3655]
[1723653691070,20.0,144.98,144.93,16.2998]
[1723653691249,0.25098,144.97,144.93,16.2998]
[1723653691445,0.25098,144.97,144.91,6.3454]
[1723653691446,20.0,144.94,144.91,6.3454]
[1723653691667,0.12549,144.95,144.91,6.3454]
[1723653691853,0.12549,144.96,144.91,6.3454]
[1723653692068,20.25098,144.97,144.91,6.3454]
[1723653692069,0.12549,144.97,144.91,6.3454]
[1723653692450,0.25098,144.97,144.91,6.3454]
[1723653692657,48.1,144.99,144.91,6.3454]
[1723653693291,0.12549,144.99,144.91,6.3454]
[1723653693477,0.25098,144.99,144.91,6.3454]
[1723653693652,20.0,144.97,144.91,6.3454]
[1723653693973,20.0,144.94,144.91,6.3454]
[1723653694151,0.37647,144.93,144.87,16.4221]
[1723653694555,20.0,144.92,144.87,16.4221]
[1723653696146,20.0,144.88,144.81,21.7992]
[1723653696352,20.0,144.86,144.81,21.7992]
[1723653697097,20.0,144.84,144.81,21.7992]
[1723653698273,0.12549,144.81,144.76,22.4061]
[1723653698580,0.25098,144.81,144.76,22.4061]
[1723653698762,20.0,144.79,144.76,22.4061]
[1723653698963,65.37647,144.81,144.76,22.4061]
[1723653699158,0.12549,144.8,144.76,22.4061]
[1723653699362,20.0,144.79,144.76,22.4061]
[1723653699560,45.37647,144.8,144.76,22.4061]
[1723653699784,68.35098,144.81,144.76,22.4061]
[1723653699957,0.25098,144.8,144.76,22.4061]
[1723653700813,20.0,144.79,144.76,22.4061]
[1723653700958,45.25098,144.8,144.76,22.4061]
[1723653701853,0.12549,144.8,144.76,22.4061]
[1723653702066,20.12549,144.81,144.76,22.4061]
[1723653702267,20.0,144.81,144.76,22.4061]
[1723653702759,0.12549,144.82,144.76,22.4061]
[1723653703059,20.0,144.81,144.76,22.4061]
[1723653703570,20.0,144.79,144.76,22.4061]
[1723653703777,20.0,144.79,144.71,6.5366]
[1723653704698,0.37647,144.8,144.71,6.5366]
[1723653704699,20.0,144.77,144.71,6.5366]
[1723653705775,45.50196,144.78,144.71,6.5366]
[1723653706173,45.12549,144.78,144.71,6.5366]
[1723653706382,20.0,144.79,144.71,6.5366]
[1723653706905,20.0,144.85,144.71,54.6366]
[1723653707306,20.0,144.89,144.71,54.6366]
[1723653707307,20.0,144.87,144.72,15.1167]
[1723653707471,20.0,144.85,144.72,15.1167]
[1723653708392,20.0,144.87,144.74,48.1]
[1723653708578,20.0,144.87,144.75,6.6246]
[1723653709905,27.17527149,144.89,144.75,6.6246]
[1723653710087,48.1,144.9,144.76,16.1035]
[1723653711096,20.0,144.89,144.76,16.1035]
[1723653711307,0.12549,144.86,144.76,16.1035]
[1723653711604,0.50196,144.86,144.76,16.1035]
[1723653711809,0.12549,144.86,144.76,16.1035]
[1723653712302,0.25098,144.86,144.76,16.1035]
[1723653713003,20.0,144.83,144.76,16.1035]
[1723653713183,0.25098,144.82,144.76,16.1035]
[1723653713592,20.12549,144.85,144.76,16.1035]
[1723653713801,0.12549,144.84,144.76,16.1035]
[1723653714182,20.0,144.83,144.76,16.1035]
[1723653714383,0.25098,144.84,144.76,16.1035]
[1723653714604,45.25098,144.84,144.76,16.1035]
[1723653714786,0.25098,144.84,144.76,16.1035]
[1723653715306,0.12549,144.84,144.76,16.1035]
[1723653715480,48.1,144.87,144.76,16.1035]
[1723653715481,20.0,144.86,144.76,16.1035]
[1723653716085,20.0,144.88,144.76,16.1035]
[1723653716803,20.0,144.86,144.76,16.1035]
[1723653716997,20.0,144.89,144.76,16.1035]
[1723653717306,48.1,144.9,144.76,16.1035]
[1723653717810,20.0,144.89,144.76,16.1035]
[1723653718507,48.1,144.9,144.76,16.1035]
[1723653718709,20.0,144.89,144.76,16.1035]